Cogmind - Beta 11 @@@ ROGUE MODE // 2022.04.20 @ 23:32:15 Player: Teratos Result: Destroyed by G-34 Mercenary with Small Laser Performance ------------- Evolutions (1) 500 Regions Visited (3) 600 Robots Destroyed (7) 35 Value Destroyed (213) 213 Prototype IDs (0) 0 Alien Tech Used (0) 0 Bonus (42) 42 TOTAL SCORE: 1390 Bonus ------- Follower Combat Kills 60 Friendly Fire -18 Cogmind --------- Core Integrity 0/400 Matter 287/300 Energy 99/100 System Corruption 0% Temperature Cool (6) Movement Core (200) Ox3 Location -9/Materials Parts ------- > --- POWER (2) -------- (None) > --- PROPULSION (2) --- (None) > --- UTILITY (2) ------ Heat Sink Medium Storage Unit > --- WEAPON (3) ------- (None) > --- INVENTORY (10) --- Wheel Peak State ------------ > --- POWER ------------ Light Nuclear Core > --- PROPULSION ------- Wheel Wheel > --- UTILITY ---------- Heat Sink Medium Storage Unit > --- WEAPON ----------- Small Laser Light Assault Rifle Heavy Assault Rifle > --- INVENTORY -------- Wheel [Rating: 11] Favorites ----------- Power Light Nuclear Core Engine Ion Engine Power Core Light Nuclear Core Propulsion Wheel Wheel Wheel Utility Medium Storage Unit Device Heat Sink Storage Medium Storage Unit Weapon Light Assault Rifle Energy Gun Small Laser Ballistic Gun Light Assault Rifle Build | -11 -10 -10 -9 ------- Run | Scr Mat Min Mat Slots Evolved 2 | . . . 2 Power 1 | . . . 1 Propulsion . | . . . . Utility . | . . . . Weapon 1 | . . . 1 Parts Attached 12 | 6 1 2 3 Power 2 | 1 . 1 . Engine 1 | 1 . . . Core 1 | . . 1 . Reactor . | . . . . Propulsion 3 | 2 1 . . Treads . | . . . . Leg . | . . . . Wheel 3 | 2 1 . . Hover . | . . . . Flight . | . . . . Utility 3 | 1 . 1 1 Device 1 | . . . 1 Storage 2 | 1 . 1 . Processor . | . . . . Hackware . | . . . . Protection . | . . . . Artifact . | . . . . Weapon 4 | 2 . . 2 Energy Gun 1 | 1 . . . Energy Cannon . | . . . . Ballistic Gun 3 | 1 . . 2 Ballistic Cannon . | . . . . Launcher . | . . . . Special Weapon . | . . . . Impact Weapon . | . . . . Slashing Weapon . | . . . . Piercing Weapon . | . . . . Special Melee Weapon . | . . . . Unidentified Prototypes . | . . . . Parts Lost 6 | . . . 6 Power 1 | . . . 1 Propulsion 2 | . . . 2 Utility . | . . . . Weapon 3 | . . . 3 Highest Loss Streak 6 | . . . 6 To Critical Strikes . | . . . . Average Slot Usage (%) 82 | . 85 84 66 Engine 2 | . 14 . . Core 10 | . . 13 8 Wheel 26 | . 28 28 16 Storage 13 | . 14 13 11 Energy Gun 13 | . 14 14 8 Ballistic Gun 14 | . 14 14 16 Naked Turns . | . . . . Heaviest Build 21 | 12 12 17 21 Greatest Support 20 | 20 20 20 20 Greatest Overweight (x) 4 | . . . 4 Average Overweight (x) . | . . . . Largest Inventory Capacity 10 | 8 8 10 10 Average Capacity 9 | 7 8 9 10 Most Carried 1 | . 1 1 1 Average Carried . | . . 1 1 Final Capacity 10 | 8 8 10 10 Final Carried 1 | . 1 1 1 Class Distribution -------------------- 96% | Mutant 3% | Gunner Dominant Class ---------------- Mutant | -10/Materials Mutant | -10/Mines Mutant | -9/Materials Resources | -11 -10 -10 -9 ----------- Run | Scr Mat Min Mat Matter Collected 327 | 197 79 29 22 Remotely . | . . . . Salvage Created 300 | . 122 75 103 Parts 16 | . 5 5 6 Haulers Intercepted . | . . . . Recyclers Shooed . | . . . . Parts Field Recycled . | . . . . Retrieved Matter . | . . . . Parts Self-Destructed . | . . . . Prevented . | . . . . Kills | -11 -10 -10 -9 ------- Run | Scr Mat Min Mat Combat Hostiles Destroyed 5 | . 2 1 2 Guns 5 | . 2 1 2 Classes Destroyed 4 | . 2 1 1 Worker 1 | . . 1 . Builder 1 | . 1 . . Grunt 4 | . 2 1 1 Sentry 1 | . . . 1 Best Kill Streak 2 | . 2 1 1 Combat Bots Only 1 | . 1 1 1 Max Kills in Single Turn 1 | . 1 1 1 Gunslinging . | . . . . Exploded . | . . . . Melee . | . . . . Uniques/NPCs Destroyed . | . . . . Combat | -11 -10 -10 -9 -------- Run | Scr Mat Min Mat Damage Taken 948 | . 81 36 831 Core 408 | . . 7 401 Absorbed by Shields . | . . . . Core Remaining (%) 98 | 100 . 97 . Volleys Fired 29 | . 10 5 14 Largest 3 | . 2 2 3 Hottest 83 | . 60 60 83 Shots Fired 57 | . 20 10 27 Gun 57 | . 20 10 27 Cannon . | . . . . Launcher . | . . . . Special . | . . . . Kinetic 37 | . 10 5 22 Thermal 20 | . 10 5 5 Explosive . | . . . . Electromagnetic . | . . . . Robot Hit Streak 8 | . 7 8 6 Robot Miss Streak 3 | . 3 1 2 Penetration Max . | . . . . Secondary Targets 1 | . . 1 . Max Gunslinging Chain 1 | . . 1 . Shots Hit Robots 35 | . 11 8 16 Core Hits 23 | . 8 5 10 Critical Kills . | . . . . Critical Parts Destroyed . | . . . . Critical Strikes . | . . . . Melee Attacks . | . . . . Impact . | . . . . Slashing . | . . . . Piercing . | . . . . Sneak Attacks . | . . . . Combat Hostiles . | . . . . Follow-up Attacks . | . . . . Damage Inflicted 424 | . 135 92 197 Guns 409 | . 135 78 196 Cannons . | . . . . Explosions . | . . . . Melee . | . . . . Ramming 15 | . . 14 1 Kinetic 245 | . 45 37 163 Thermal 164 | . 90 41 33 Explosive . | . . . . Electromagnetic . | . . . . Impact . | . . . . Slashing . | . . . . Piercing . | . . . . Highest Corruption . | . . . . Average Corruption . | . . . . Corruption Purged . | . . . . Corruption Blocked . | . . . . Overload Shots . | . . . . Overflow Damage . | . . . . Projectiles . | . . . . Explosions . | . . . . Melee . | . . . . Knockbacks . | . . . . Impact . | . . . . Kinetic . | . . . . Secondary . | . . . . Self-Inflicted Damage 7 | . . 7 . Shots . | . . . . Rammed 2 | . . 1 1 Targets Rammed 2 | . . 1 1 Kicked . | . . . . Crushed . | . . . . Highest Temperature 58 | . 58 33 27 Average Temperature 19 | . 24 17 9 Received Heat Transfer 366 | . 48 18 300 Siege Activations . | . . . . Robots Corrupted . | . . . . Combat Hostiles . | . . . . Parts Fried . | . . . . Impact Corruptions . | . . . . Robots Melted . | . . . . Combat Hostiles . | . . . . Parts Melted . | . . . . Heat Transferred 375 | . 200 100 75 Parts Sabotaged . | . . . . Parts Stolen . | . . . . Parts Stripped . | . . . . Power Chain Reactions . | . . . . Missiles Intercepted . | . . . . Alert | -11 -10 -10 -9 ------- Run | Scr Mat Min Mat Peak Influence 144 | . 85 144 60 Initial 33 | . . 33 . Average 34 | . 29 38 43 Maximum Alert Level . | . . . . Low Security (%) 100 | 100 100 100 100 Level 1 . | . . . . Level 2 . | . . . . Level 3 . | . . . . Level 4 . | . . . . Level 5 . | . . . . High Security . | . . . . Max Security . | . . . . Squads Dispatched 2 | . . . 2 Investigation . | . . . . Extermination . | . . . . Reinforcement 2 | . . . 2 Assault . | . . . . Garrison . | . . . . Intercept . | . . . . Searches Triggered . | . . . . Construction Impeded . | . . . . Haulers Reinforced . | . . . . Active Scanning Responses . | . . . . Cargo Convoy Interrupts . | . . . . Stealth | -11 -10 -10 -9 --------- Run | Scr Mat Min Mat Distress Signals 1 | . 1 . . Communications Jammed . | . . . . Distress Signals . | . . . . Times Spotted 18 | . 5 5 8 Peak Tracking Total 5 | . 3 3 5 Tactical Retreats 1 | . 1 . . Traps | -11 -10 -10 -9 ------- Run | Scr Mat Min Mat Traps Triggered . | . . . . Indirectly . | . . . . Trap Hack Attempts . | . . . . Triggered . | . . . . Disarmed . | . . . . Reprogrammed . | . . . . Reused . | . . . . Traps Extracted . | . . . . Installed . | . . . . Triggered . | . . . . Machines | -11 -10 -10 -9 ---------- Run | Scr Mat Min Mat Machines Disabled . | . . . . Max in Single Turn . | . . . . Machines Sabotaged . | . . . . Garrisons Compromised . | . . . . Overloaded Fab Kills . | . . . . Hacking | -11 -10 -10 -9 --------- Run | Scr Mat Min Mat Machines Accessed . | . . . . Terminals . | . . . . Fabricators . | . . . . Repair Stations . | . . . . Recycling Units . | . . . . Scanalyzers . | . . . . Garrison Access . | . . . . Total Hacks . | . . . . Successful . | . . . . Failed . | . . . . Catastrophic . | . . . . Database Lockouts . | . . . . Manual . | . . . . Terminals . | . . . . Fabricators . | . . . . Repair Stations . | . . . . Recycling Units . | . . . . Scanalyzers . | . . . . Garrison Access . | . . . . Terminal Hacks . | . . . . Fabricator Hacks . | . . . . Repair Station Hacks . | . . . . Recycling Unit Hacks . | . . . . Scanalyzer . | . . . . Garrison Access Hacks . | . . . . Unauthorized Hacks . | . . . . Terminals . | . . . . Fabricators . | . . . . Repair Stations . | . . . . Recycling Units . | . . . . Scanalyzers . | . . . . Garrison Access . | . . . . Data Cores Recovered . | . . . . Used . | . . . . Hacking Detections . | . . . . Full Trace Events . | . . . . Feedback Events . | . . . . Feedback Blocked . | . . . . Robot Schematics Acquired . | . . . . Robots Built . | . . . . Authchips . | . . . . Time . | . . . . Total Robot Build Rating . | . . . . Part Schematics Acquired . | . . . . Parts Built . | . . . . Authchips . | . . . . Time . | . . . . Total Part Build Rating . | . . . . Parts Repaired . | . . . . Time . | . . . . Parts Recycled . | . . . . Recycled Matter . | . . . . Retrieved Matter . | . . . . Retrieved Components . | . . . . Parts Scanalyzed . | . . . . Part Schematics Acquired . | . . . . Parts Damaged . | . . . . Bothacking | -11 -10 -10 -9 ------------ Run | Scr Mat Min Mat Used RIF Installer . | . . . . Robots Hacked . | . . . . Non-combat . | . . . . Combat . | . . . . Robot Hacks Applied . | . . . . Relay Couplers Released . | . . . . Fabnet Peak Effective % . | . . . . Robots Rewired . | . . . . Allies Hacked . | . . . . Hacks Repelled . | . . . . Allies | -11 -10 -10 -9 -------- Run | Scr Mat Min Mat Total Allies 3 | . . 3 . Largest Group 3 | . . 3 . Highest-Rated Group 73 | . . 73 . Highest-Rated Ally 31 | . . 31 . Total Orders . | . . . . Ally Attacks 6 | . . 6 . Total Damage 109 | . . 109 . Kills 2 | . . 2 . Allies Corrupted . | . . . . Allies Melted . | . . . . Intel | -11 -10 -10 -9 ------- Run | Scr Mat Min Mat Robot Analysis Total . | . . . . Derelict Logs Recovered 2 | . . 2 . Drone Launches . | . . . . Drone Recoveries . | . . . . Exploration | -11 -10 -10 -9 ------------- Run | Scr Mat Min Mat Turns Passed 1161 | 73 200 764 124 Spaces Moved 1319 | 83 213 931 92 Core 8 | 7 . . 1 Treads . | . . . . Legs . | . . . . Wheels 1311 | 76 213 931 91 Hover . | . . . . Flight . | . . . . Fastest Speed 50 | 50 80 80 80 Average Speed 80 | 77 80 80 88 Slowest Speed 250 | 80 80 80 250 Overloaded Moves . | . . . . Propulsion Burnouts . | . . . . Robots Hopped . | . . . . Cave-ins Triggered . | . . . . Exploration Rate (%) 33 | 4 29 91 9 Regions Visited 3 Branch Regions 1 Pre-discovered Areas 2 | . . 2 . Known Exits Taken . | . . . . Unknown Exits Taken 3 | 1 1 1 . Scrap Searched 2 | . . 2 . Spaces Dug . | . . . . Terrain Destroyed . | . . . . Melee . | . . . . Projectile . | . . . . AOE . | . . . . Terrain Rammed . | . . . . Walls Destroyed . | . . . . Machines Disabled . | . . . . Actions | -11 -10 -10 -9 --------- Run | Scr Mat Min Mat Total 1361 | 88 223 940 110 Wait . | . . . . Move 1316 | 82 212 930 92 Hop . | . . . . Pick Up . | . . . . Fast Attach 11 | 6 . 2 3 Attach . | . . . . Detach . | . . . . Swap 1 | . 1 . . Drop 2 | . . 2 . Fire 29 | . 10 5 14 Melee . | . . . . Ram 2 | . . 1 1 Kick . | . . . . Crush . | . . . . Escape Stasis . | . . . . Rewire . | . . . . Trap . | . . . . Miscellaneous . | . . . . Route ------- -11/Scrapyard -10/Materials -10/Mines (discovered 2 exits: [*Mat x2]) -9/Materials History --------- Turn | Location | Event 13 | -11/Scrapyard | Discovered new exit (range 16) 74 | -11/Scrapyard | Entered Materials 262 | -10/Materials | Discovered new exit (range 10) 274 | -10/Materials | Entered Mines 285 | -10/Mines | Escorted by a lone wolf Derelict 305 | -10/Mines | Learned location of Storage (-8) 323 | -10/Mines | Build established: Mutant 528 | -10/Mines | Learned location of Zion (-7) 610 | -10/Mines | Learned Materials garrison access intel 638 | -10/Mines | Discovered new exit (range 7) 650 | -10/Mines | Discovered new exit (range 8) 721 | -10/Mines | Received a Rocket Launcher from a helpful Derelict 1038 | -10/Mines | Entered Materials 1038 | -9/Materials | Evolved 2 slots: Power x1, Weapon x1 1153 | -9/Materials | Core integrity fell below 50% 1159 | -9/Materials | Core integrity fell below 20% 1162 | -9/Materials | Destroyed by G-34 Mercenary with Small Laser Last Messages --------------- 01055_ O-16 Technician uses terminal to summon reinforcements. 01055_ ALERT: Hostiles spotted, dispatching reinforcements to Terminal M005. 01055_ O-16 Technician locks terminal. 01064_ Y-45 Defender destroyed. 01073_ Acquired 2 matter. 01076_ Acquired Hvy. Assault Rifle. 01081_ Acquired 10 matter. 01097_ Acquired Heat Sink. 01098_ Acquired 10 matter. 01116_ Wheel destroyed. 01132_ Sml. Laser destroyed. 01138_ G-34 Mercenary destroyed. 01138_ Lgt. Nuclear Core destroyed. 01148_ Wheel destroyed. 01150_ Hvy. Assault Rifle destroyed. 01156_ Lgt. Assault Rifle severed. 01157_ Acquired Lgt. Assault Rifle. 01158_ Lgt. Assault Rifle destroyed. 01160_ Slammed into G-34 Mercenary. Map ----- +----------------------------------------------------+ | | | | | | | ?????????????????????????????????????????????????? | | ?????????????????????????????????????????????????? | | ??????????#####??????????????????????????????????? | | #####?????# #??????????????????????????????????? | | #?????# #??????????????????????????????????? | | """ #?????# #??????????????????????????????????? | | """ #?????# #??????????????????????????????????? | | """ #?????# #??????????????????????????????????? | | ####### #########??????????????????????????? | | # ## # #??????????????????????????? | | # "" ###+## #??????????????????????????? | | # "T # #??????????????????????????? | | ##### "" + =% #??????????????????????????? | | + # ! #??????????????????????????? | | #### ### ## #??????????????????????????? | | #??# #?# ## #??????????????????????????? | | ##??# #?# #### ###??????????????????????????? | | ????# #?# #??# ########?????????????????????? | | ????######?# #??# # #?????????????????????? | | ???????????# #??# # #?????????????????????? | | ???????????#+#??# #""" #?????????????????????? | | ????????????????# #"R !#?????????????????????? | | ????????????????# #"""g@ #?????????????????????? | | ????????????????+ + !%ggl#?????????????????????? | | ????????????????# ########?????????????????????? | | ????????????????# ## #?????????????????????? | | ????????????????# #?????????????????????? | | ????????????????# / #??????????????? | | ????????????????# # #??????????????? | | ????????????????###### #?????????????????????? | | ??????????????????????## ###?????????????????????? | | ???????????????????????? #???????????????????????? | | ?????????????????????????#???????????????????????? | | ?????????????????????????????????????????????????? | | ?????????????????????????????????????????????????? | | ?????????????????????????????????????????????????? | | ?????????????????????????????????????????????????? | | ?????????????????????????????????????????????????? | | ?????????????????????????????????????????????????? | | ?????????????????????????????????????????????????? | | ?????????????????????????????????????????????????? | | ?????????????????????????????????????????????????? | | ?????????????????????????????????????????????????? | | ?????????????????????????????????????????????????? | | ?????????????????????????????????????????????????? | | ?????????????????????????????????????????????????? | | ?????????????????????????????????????????????????? | +----------------------------------------------------+ Best States ------------- Heat Dissipation 38 Energy Generation 14 Energy Capacity 250 Matter Stores 300 Matter Capacity 300 Sight Range 16 Terrain Scan Density 10 Evasion (%) 44 Item Schematics ----------------- None Robot Schematics ------------------ None Fabricated ------------ Nothing Alien Tech Used ----------------- None Achievements -------------- None Challenges ------------ None Game ------ Seed ShieldFocalShredder Manual? 0 Play Time 00:13:48 Cumulative 64.3 hours Start 2022.04.20 @ 23:20:32 End 2022.04.20 @ 23:32:15 Sessions 1 Manual Loads 0 Difficulty Rogue Special Mode None Game No. 138 Rogue 138 Adventurer 0 Explorer 0 Win Type - Total 0 Types 0/0/0/0/0/0/0/0/0 Lore% 25 Gallery% 31 Achievement% 26 Wizard Run 0 Options --------- ASCII 0 Keyboard 0 Movement Arrows Keybinds 0 Fullscreen 1 Font 18/SmallcapsGlow Map View 76x50 Tactical HUD 1 Map Filters NONE Filters NONE Steam 1 RUN: ede04126-61d9-4021-9138-33151dac59ed